{"text_format":"3","workbook":"xlsx","n_sheets":2,"sheets":["IDENTIFICATION ET ELIGIBILITE","Tables"],"not_rendered":{"defined_names":11},"read":"whole","date_system":"1900"}

{"sheet":"IDENTIFICATION ET ELIGIBILITE","index":0,"n_rows":42,"n_cols":5,"rows_kept":42,"merged":[[0,0,0,2],[4,0,4,1],[8,0,8,1],[10,0,10,1],[11,0,11,1],[12,0,12,1],[14,0,14,1],[15,0,15,2],[16,0,16,1],[17,1,17,2],[18,0,18,1],[20,0,20,1],[21,1,21,2],[22,0,22,1],[24,0,24,1],[25,0,25,2],[29,1,29,2],[31,0,31,1],[32,0,32,2],[34,0,34,1],[35,0,35,1],[36,0,36,1],[37,0,37,1],[38,0,38,1],[39,0,39,1],[41,0,41,2],[42,0,42,2]]}
[" Identification et Eligibilité"]
[]
[null,"Date :",null,{"$f":"IF(C3=\"\",\"<--- SAISIR LA DATE DU JOUR\",\"\")","v":"<--- SAISIR LA DATE DU JOUR"},{"$f":"IF(C3=\"\",1,0)","v":1}]
[]
["N° de dossier :",null,null,{"$f":"IF(C5=\"\",\"<--- SAISIR LE NUMERO DE DOSSIER\",\"\")","v":"<--- SAISIR LE NUMERO DE DOSSIER"},{"$f":"IF(C5=\"\",1,0)","v":1}]
[]
[null,"Age à la date d'ARDC :",{"$f":"IF(AND(C3<>\"\",C5<>\"\",C11=\"\"),\"MANQUE DATE DE NAISSANCE\",IF(AND(C3<>\"\",C11=\"\",C5=\"\"),\"MANQUE DATE DE NAISSANCE\",IF(AND(C3=\"\",C5<>\"\"),\"SAISIR LA DATE\",IF(AND(C5<>\"\",C3=\"\"),\"SAISIR LE N° DE DOSSIER\",IF(AND(C5=\"\",C3=\"\"),\"Saisir la date en C3 et le N° de dossier\",DATEDIF(C11,C21,\"y\")&\"ans\"&\" \"&DATEDIF(C11,C21,\"ym\")&\"mois\"&\" \"&DATEDIF(C11,C21,\"md\")&\"jours\")))))","v":"Saisir la date en C3 et le N° de dossier"}]
[null,null,{"$f":"IF(C5=\"\",\"\",IF(DATEDIF(C11,C21,\"Y\")<40,\"\",\"Plus de 40 ans à l'ARDC\"))","v":""}]
["Nom - Prénom :"]
[]
["Date de naissance :",{"$nulls":3},{"$f":"IF(C11=\"\",1,0)","v":1}]
[]
["Adresse du siège social :"]
[]
["Date d'entrée dans le parcours :"]
[{"$f":"IF(C17=\"\",\"Date AMEXA à renseigner\",IF(C17<C15,\"Inscription AMEXA antérieure à la date d'entrée dans le parcours\",IF(AND(C35<>\"\",C35<>\"NC\",C35<C15),\"Désignation du mandataire antérieure à la date d'entrée dans le parcours\",\"\")))","v":"Date AMEXA à renseigner"}]
["Date d'inscription AMEXA :",null,null,{"$f":"IF(C17=\"\",\"<--- si non concerné, saisir NC\",\"\")","v":"<--- si non concerné, saisir NC"},{"$f":"IF(C17=\"\",1,0)","v":1}]
[null,{"$f":"IF(C17=\"NC\",\"\",IF(C17<C21,\"\",IF(DATEDIF(C21,C17,\"M\")<24,\"\",\"Plus de 24 mois avec l'ARDC\")))","v":""}]
["Choix statut AMEXA",{"$nulls":3},{"$f":"IF(C19=\"\",1,0)","v":1}]
[]
["Date ARDC de la DJA :"]
[null,{"$f":"IF(OR(C23=\"\",C23=\"NC\"),\"\",IF(AND(C23<>\"\",C23<>\"NC\",C23<C21),\"\",\"Date de dérogation postérieure à l'ARDC de DJA\"))","v":""}]
["Date d'octroi de la dérogation (si concerné) :",null,null,{"$f":"IF(C23=\"\",\"<--- A SAISIR, si non concerné, saisir NC\",\"\")","v":"<--- A SAISIR, si non concerné, saisir NC"}]
[]
["Création / Reprise / Transmission / Intégration",null,null,{"$f":"IF(C25=\"\",\"<--- A SAISIR\",\"\")","v":"<--- A SAISIR"},{"$f":"IF(C25=\"\",1,0)","v":1}]
["CAPACITE PROFESSIONNELLE AGRICOLE"]
[]
["Situation du candidat :"]
[]
[{"$nulls":4},{"$f":"IF(A30=\"\",1,0)","v":1}]
[{"$f":"IF(A30=\"\",\"SAISIE OBLIGATOIRE\",\"\")","v":"SAISIE OBLIGATOIRE"}]
["INSTALLATION SOUS FORME SOCIETAIRE",null,null,{"$f":"IF($C$32=\"NON\",\"\",IF(C32=\"\",\"<--- A RENSEIGNER\",\"\"))","v":"<--- A RENSEIGNER"}]
[{"$f":"IF(C32=\"OUI\",\"INDIQUER LE NOM DE LA SOCIETE\",\"\")","v":""},null,null,{"$f":"IF(C32=\"\",\"<---SAISIR LE NOM DE LA SOCIETE\",\"\")","v":"<---SAISIR LE NOM DE LA SOCIETE"}]
[]
[{"$f":"IF(C32=\"OUI\",\"SI SAS, indiquer la date de désignation du mandataire\",\"\")","v":""},null,null,{"$f":"IF($C$32=\"NON\",\"\",IF(C35=\"\",\"<--- A SAISIR, si non SAS, saisir NC\",\"\"))","v":"<--- A SAISIR, si non SAS, saisir NC"}]
[{"$f":"IF(C32=\"oui\",\"L'objet de la société est agricole\",\"\")","v":""},null,null,{"$f":"IF($C$32=\"NON\",\"\",IF(C36=\"\",\"<--- A SAISIR\",\"\"))","v":"<--- A SAISIR"}]
[{"$f":"IF(C32=\"oui\",\"Le JA ou l'ensemble des JA, détient plus de 50% des parts de la société\",\"\")","v":""},null,null,{"$f":"IF($C$32=\"NON\",\"\",IF(C37=\"\",\"<--- A SAISIR\",\"\"))","v":"<--- A SAISIR"}]
[{"$f":"IF(C32=\"oui\",\"Le candidat détient à minima 10% du capital socila de la société\",\"\")","v":""},null,null,"<--- A SAISIR"]
[{"$f":"IF(C32=\"oui\",\"Est-ce que le capital de la société est détenu par une ou plusieurs autres sociétés ?\",\"\")","v":""},null,null,"<--- A SAISIR"]
[{"$f":"IF(C39=\"OUI\",\"est ce que la ou les sociétés détentrices des parts sociales sont bien détenues à plus de 50 % par des JA et est ce que le candidat détient au minimum 10 % de leur capital\",\"\")","v":""},null,null,{"$f":"IF(A40=\"\",\"\",IF(C40=\"\",\"<--- A SAISIR\",\"\"))","v":""}]
[{"$nulls":4},{"$f":"COUNTIF(C36:C38,\"NON\")+IF(C40=\"NON\",1,0)","v":0}]
[{"$f":"IF(OR(E42>0,E41>0),\"PROJET INELIGIBLE\",\"PROJET ELIGIBLE\")","v":"PROJET INELIGIBLE"},{"$nulls":3},{"$f":"SUM(E3:E40)","v":7}]

{"sheet":"Tables","index":1,"n_rows":26,"n_cols":6,"rows_kept":26}
[{"$nulls":5},"Création"]
[{"$nulls":5},"Reprise Totale"]
[{"$nulls":5},"Reprise Partielle"]
[{"$nulls":5},"Transmission"]
[{"$nulls":5},"Intégration d'une société éxistante"]
{"$rows_empty":9}
["Titulaire d'un diplôme agricole > au niveau 4"]
["Diplôme agricôle = au niveau 4 et stage 6 mois : Candidat disposant d'un diplôme agricole de niveau 4 et ayant réalisé dans son cursus un stage ou une alternance de plus de 6 mois sur une exploitation agricole"]
["N=4 & Expérience : Candidats pouvant se prévaloir d’une expérience significative (durée et pertinence de l’activité) en tant que salarié sur une exploitation compatible avec les critères techniques de recevabilité des projets"]
["N=4 -> Autre cas : réalisation dans le courant du parcours, et avant le dépôt de la demande, d’un contrat de coopération professionnelle agricole (CCPA)"]
["N=4 -> Autre cas : prévoir la réalisation dans la durée du projet de formations complémentaires au regard de l’atelier principal et éventuellement des ateliers secondaires"]
[]
[]
["ATP"]
["ATS"]
["AIP"]
["OUI"]
["NON"]